bitfinex/quotes_ETHUSD_20240707
["timestamp","ask_amount","ask_price","bid_price","bid_amount"]
[1720316006471,2.5656346,3050.0,3049.7,3.27898]
[1720316006670,1.70690761,3050.3,3049.7,3.27898]
[1720316006882,2.56575929,3050.2,3049.7,3.27898]
[1720316007079,2.56575929,3050.1,3049.9,3.27879]
[1720316007294,1.70686528,3050.4,3049.9,3.27879]
[1720316007600,2.63124402,3050.3,3049.9,3.27879]
[1720316007807,2.56559418,3050.2,3049.9,3.27879]
[1720316007967,2.63120346,3050.1,3049.9,3.27879]
[1720316008173,2.56562193,3050.0,3049.7,6.5579]
[1720316008372,0.06560928,3050.1,3049.8,3.27885]
[1720316008603,2.56574686,3050.0,3049.8,3.27885]
[1720316008920,0.06560928,3050.1,3049.8,3.27885]
[1720316009097,2.56574871,3050.0,3049.8,3.27885]
[1720316009408,0.06560928,3049.9,3049.5,3.27913]
[1720316009613,4.98519206,3050.4,3049.5,3.27913]
[1720316009614,4.7979,3050.1,3049.5,3.27913]
[1720316009811,4.33841443,3050.0,3049.4,3.27924]
[1720316010024,2.56587309,3049.9,3049.2,3.27947]
[1720316010223,2.63148237,3049.8,3049.5,3.27922]
[1720316010524,2.63158096,3049.7,3049.5,3.27922]
[1720316010720,0.06560928,3049.7,3049.5,3.27922]
[1720316010882,0.06560928,3050.0,3049.5,3.27922]
[1720316011082,3.22300536,3049.9,3049.5,3.27922]
[1720316012023,8.93759602,3049.8,3049.2,3.27947]
[1720316012319,2.63159602,3049.7,3049.2,3.27947]
[1720316012515,2.56598674,3049.6,3049.2,3.27947]
[1720316012726,1.20100164,3049.5,3049.2,3.27947]
[1720316012881,0.06560928,3049.5,3049.2,3.27947]
[1720316013243,0.06560928,3049.7,3049.3,3.27943]
[1720316013408,2.56614369,3049.6,3049.3,3.27943]
[1720316013584,1.20107109,3049.5,3049.3,3.27943]
[1720316013783,0.06560928,3049.5,3049.3,3.27943]
[1720316013979,0.06560928,3049.5,3049.1,3.2796]
[1720316014215,0.06560928,3049.5,3049.1,6.55915]
[1720316014394,0.06560928,3049.5,3049.1,3.27955]
[1720316015023,0.06560928,3049.5,3049.2,3.27947]
[1720316015196,0.06560928,3049.7,3049.2,3.27947]
[1720316015402,1.13544509,3049.6,3049.2,3.27947]
[1720316015596,1.20105437,3049.5,3049.2,3.27947]
[1720316015791,0.06560928,3049.5,3049.2,3.27947]
[1720316016626,0.06560928,3049.7,3049.4,3.27933]
[1720316016802,1.13539993,3049.6,3049.4,3.27933]
[1720316017026,1.20100921,3049.5,3049.4,3.27933]
[1720316017338,1.13539993,3049.5,3049.4,3.27933]
[1720316017830,0.06560928,3049.7,3049.4,3.27933]
[1720316017997,1.13537811,3049.6,3049.4,3.27933]
[1720316018327,1.13537811,3049.5,3049.4,3.27933]
[1720316019037,0.06560928,3049.7,3049.6,3.27911]
[1720316019187,1.13534555,3049.7,3049.6,3.27911]
[1720316020396,1.13534555,3049.7,3049.6,6.55822]
[1720316020592,6.306,3049.8,3049.7,6.55802]
[1720316021011,6.306,3049.8,3049.7,8.81842]
[1720316021211,6.306,3049.8,3049.7,9.25521297]
[1720316023041,6.306,3049.8,3049.7,12.53422297]
[1720316024737,0.06560928,3050.4,3050.3,6.55672]
[1720316025049,11.05714922,3050.9,3050.7,3.27791]
[1720316025226,7.44097725,3050.8,3050.7,3.27791]
[1720316025838,7.44097725,3050.8,3050.7,3.22791]
[1720316026445,8.87104049,3050.8,3050.7,3.22791]
[1720316026627,7.44097725,3050.8,3050.7,3.22791]
[1720316027220,7.44093099,3050.8,3050.7,3.22791]
[1720316027745,7.44093312,3050.8,3050.7,3.22791]
[1720316030632,7.44093725,3050.8,3050.7,3.22791]
[1720316031195,8.4406359,3050.8,3050.7,3.22791]
[1720316031639,9.87071418,3050.8,3050.7,3.22791]
[1720316032939,9.87071418,3050.8,3050.7,6.50584]
[1720316033101,7.44093725,3050.8,3050.7,6.50584]
[1720316033423,6.306,3050.8,3050.7,6.50584]
[1720316041042,8.87098766,3050.8,3050.7,6.50584]
[1720316041207,6.306,3050.8,3050.7,6.50584]
[1720316042114,6.306,3050.8,3050.7,3.22791]
[1720316042315,2.4529,3050.7,3050.5,3.27807]
[1720316042526,0.06560928,3050.6,3050.5,3.27807]
[1720316044022,1.20064251,3050.6,3050.5,3.27807]
[1720316044751,1.13503323,3050.6,3050.5,6.55622]
[1720316044956,0.06560928,3050.7,3049.9,5.71983]
[1720316045162,0.06560928,3050.7,3050.0,0.571983]
[1720316045459,1.1349785,3050.6,3050.4,3.27821]
[1720316045615,0.06560928,3050.5,3050.4,3.27821]
[1720316045815,0.06560928,3050.7,3050.5,3.27814]
[1720316046264,1.13502988,3050.6,3050.5,3.27814]
[1720316046763,0.06560928,3050.7,3050.6,3.27804]
[1720316046917,1.20055909,3050.7,3050.6,3.27804]
[1720316047120,1.20055926,3050.7,3050.6,3.27804]
[1720316048348,1.95121519,3050.7,3050.6,3.27804]
[1720316048921,0.81626521,3050.7,3050.6,3.27804]
[1720316049127,1.95129167,3050.7,3050.6,3.27804]
[1720316049768,1.13502646,3050.7,3050.6,6.55608]
[1720316050670,1.20063574,3050.7,3050.6,6.55608]
[1720316052227,1.20054908,3050.7,3050.6,6.55608]
[1720316054058,2.15854908,3050.7,3050.6,6.55608]
[1720316054878,2.15854908,3050.7,3050.6,3.27804]
[1720316055044,3.00500399,3050.7,3050.6,3.27804]
[1720316055576,6.8832931,3050.7,3050.3,3.27831]
[1720316055787,0.958,3050.4,3050.1,3.27848]
[1720316055982,3.36016419,3050.7,3050.1,3.27848]
[1720316055983,0.958,3050.2,3050.1,3.27848]
[1720316056284,2.37464822,3050.2,3050.1,3.27848]
[1720316056577,2.15877111,3050.2,3050.1,3.27848]
[1720316058589,1.02360928,3050.2,3050.1,3.27848]
[1720316058887,0.958,3050.2,3050.1,3.27848]
[1720316059251,2.09318123,3050.2,3050.1,3.27848]
[1720316059548,3.8758522,3050.2,3050.1,3.27848]
[1720316059752,2.9178522,3050.2,3050.1,3.27848]
[1720316059963,1.48753143,3050.2,3050.1,3.27848]
[1720316060272,2.56548743,3050.2,3050.1,3.27848]
[1720316060474,1.13518123,3050.2,3050.1,6.55706]
[1720316062209,0.06560928,3050.6,3050.5,3.27815]
[1720316062361,2.56517975,3050.6,3050.5,3.27815]
[1720316062558,2.56517975,3050.6,3050.5,6.5563]
[1720316062791,2.63078903,3050.6,3050.5,6.5563]
[1720316064390,2.56517975,3050.6,3050.5,6.5563]
[1720316065098,0.06560928,3050.7,3050.6,3.27804]
[1720316065258,2.63060811,3050.7,3050.6,3.27804]
[1720316065593,1.49565673,3050.7,3050.6,3.27804]
[1720316065797,2.63061502,3050.7,3050.6,3.27804]
[1720316067293,2.56500574,3050.7,3050.6,6.55608]
[1720316068463,6.306,3050.8,3050.7,6.55586]
[1720316068690,8.87082175,3050.8,3050.7,6.55586]
[1720316068854,6.306,3050.8,3050.7,10.489376]
[1720316069977,7.43,3051.1,3051.0,6.55522]
[1720316070185,9.616,3051.5,3051.4,3.27718]
[1720316070391,12.18038204,3051.5,3051.4,3.27718]
[1720316070589,14.14142024,3051.5,3051.4,3.27718]
[1720316071613,11.5770382,3051.5,3051.4,3.27718]
[1720316071805,14.14138883,3051.5,3051.4,3.27718]
[1720316074816,11.5770382,3051.5,3051.4,3.27718]
[1720316075113,14.1414136,3051.5,3051.4,3.27718]
[1720316075322,13.00673169,3051.5,3051.4,3.27718]
[1720316075487,14.14140906,3051.5,3051.4,3.27718]
[1720316078110,13.00674828,3051.5,3051.4,3.27718]
[1720316078320,14.14143882,3051.5,3051.4,3.27718]
[1720316079403,12.18040062,3051.5,3051.4,3.27718]
[1720316081600,12.18037934,3051.5,3051.4,3.27718]
[1720316081803,12.18037934,3051.5,3051.4,6.55436]
[1720316081804,13.13837934,3051.5,3051.4,6.55436]
[1720316082003,11.04569822,3051.5,3051.4,6.55436]
[1720316082391,10.574,3051.5,3051.4,6.55436]
[1720316087015,11.70865924,3051.5,3051.4,6.55436]
[1720316087340,11.70865924,3051.5,3051.4,3.27718]
[1720316087545,16.69610799,3051.5,3051.4,3.27718]
[1720316088015,16.69625306,3051.5,3051.4,3.27718]
[1720316089121,14.30935306,3051.5,3051.4,3.27718]
[1720316091225,12.87958567,3051.5,3051.4,3.27718]
[1720316091415,14.3093326,3051.5,3051.4,3.27718]
[1720316094219,12.18046668,3051.5,3051.4,3.27718]
[1720316094614,13.13838823,3051.5,3051.4,3.27718]
[1720316094847,11.70868506,3051.5,3051.4,3.27718]
[1720316095032,11.70867596,3051.5,3051.4,3.27718]
[1720316095433,13.1383691,3051.5,3051.4,3.27718]
[1720316095963,11.70867596,3051.5,3051.4,3.27718]
[1720316096143,12.87954356,3051.5,3051.4,3.27718]
[1720316097148,14.30925565,3051.5,3051.4,3.27718]
[1720316097371,14.30925565,3051.5,3050.8,3.27775]
[1720316097646,14.30925565,3051.5,3050.6,3.27795]
[1720316097647,0.958,3050.9,3050.6,3.27795]
[1720316097956,0.958,3050.7,3050.3,3.27828]
[1720316098157,0.958,3050.4,3050.1,3.27857]
[1720316098313,0.958,3050.2,3050.1,3.27857]
[1720316098624,2.15852706,3050.2,3050.1,3.27857]
[1720316099546,2.09291778,3050.2,3050.1,3.27857]
[1720316100007,1.13491778,3050.2,3050.1,3.27857]
[1720316100205,2.36660928,3050.7,3050.1,3.27857]
[1720316100206,1.20052706,3050.6,3050.1,3.27857]
[1720316100412,2.91536302,3050.5,3050.2,3.27843]
[1720316100657,2.91536302,3050.5,3050.1,3.27857]
[1720316100658,0.06560928,3050.4,3050.1,3.27857]
[1720316100853,1.20072409,3050.4,3050.1,3.27857]
[1720316101023,1.13511481,3050.3,3049.9,3.27877]
[1720316101351,0.06560928,3050.2,3049.9,3.27877]
[1720316101550,1.13511481,3050.1,3049.9,3.27877]
[1720316101846,0.06560928,3050.0,3049.9,3.27877]
[1720316102347,1.13520857,3050.0,3049.9,3.27877]
[1720316102650,0.06560928,3050.4,3049.9,3.27877]
[1720316102850,1.13512061,3050.3,3050.1,3.2785]
[1720316103026,0.06560928,3050.4,3050.1,3.2785]
[1720316103357,1.1351253,3050.3,3050.1,3.2785]
[1720316103659,0.06560928,3050.4,3050.1,3.2785]
[1720316103832,1.13513525,3050.3,3050.1,3.2785]
[1720316104145,0.06560928,3050.4,3050.1,3.2785]
[1720316104352,1.13511541,3050.3,3050.1,3.2785]
[1720316104534,7.43,3050.5,3049.8,3.2789]
[1720316104738,7.43,3050.5,3050.4,3.27825]
[1720316105049,8.565047,3050.5,3050.4,3.27825]
[1720316105251,8.565047,3050.5,3050.2,3.2784]
[1720316105559,1.20069799,3050.4,3050.3,3.27836]
[1720316106315,0.06560928,3050.4,3050.3,3.27836]
[1720316106516,0.06560928,3050.7,3050.3,3.27836]
[1720316106712,3.20246515,3050.6,3050.3,3.27836]
[1720316107059,1.20069964,3050.5,3050.4,3.27825]
[1720316107223,1.20069964,3050.5,3050.1,3.27854]
[1720316107430,0.06560928,3050.5,3050.1,3.27854]
[1720316107738,0.06560928,3050.5,3050.3,3.27828]
[1720316108817,0.06560928,3050.5,3050.1,3.27854]
[1720316109539,0.06560928,3050.5,3050.3,3.27827]
[1720316110555,0.06560928,3050.5,3050.4,3.27825]
[1720316111570,0.06560928,3050.5,3049.7,5.58603]
[1720316111571,2.63089436,3050.5,3050.0,3.27867]
[1720316111895,2.63089436,3050.5,3049.7,2.3071]
[1720316111896,7.51745622,3050.4,3049.8,3.27886]
[1720316112038,2.63095997,3050.3,3049.7,3.27896]
[1720316112238,2.63095997,3050.2,3049.8,3.27887]
[1720316112562,7.44108189,3050.1,3049.8,3.27887]
[1720316112774,0.8162784,3050.0,3049.6,3.27903]
[1720316113070,0.8162784,3050.0,3049.7,3.27892]
[1720316113474,0.8162784,3050.0,3049.5,3.27918]
[1720316113781,0.8162784,3050.0,3049.6,3.27909]
[1720316114264,0.06560928,3050.0,3049.8,3.27882]
[1720316114468,6.37160928,3050.1,3049.8,3.27882]
[1720316115450,6.306,3050.1,3049.8,3.27882]
[1720316116674,6.94316093,3050.1,3049.8,3.27882]
[1720316116877,0.06560928,3050.0,3049.8,3.27882]
[1720316118380,6.37160928,3050.1,3049.8,6.55762]
[1720316118609,6.37160928,3050.1,3049.8,3.2788]
[1720316121491,1.13528538,3050.0,3049.8,3.2788]
[1720316121644,0.06560928,3050.0,3049.8,3.2788]
[1720316121850,0.959,3049.9,3049.8,3.2788]
[1720316122097,1.69206093,3049.9,3049.4,3.27929]
[1720316122250,0.959,3049.5,3049.4,3.27923]
[1720316122798,0.959,3049.7,3049.5,3.27914]
[1720316123601,0.73306093,3049.9,3049.6,3.27911]
[1720316123797,0.959,3049.7,3049.6,3.27911]
[1720316124429,6.306,3050.1,3050.0,3.27868]
[1720316124714,6.306,3050.1,3050.0,6.55736]
[1720316126168,6.306,3050.1,3050.0,9.83604]
[1720316126484,7.43,3050.4,3050.3,6.55672]
[1720316126682,7.43,3050.8,3050.3,2.948772]
[1720316126886,1.13496019,3050.7,3050.6,3.27804]
[1720316128285,1.20056947,3050.7,3050.6,3.27804]
[1720316128998,0.06560928,3050.7,3050.6,3.27804]
[1720316129185,1.2006489,3050.7,3050.6,3.27804]
[1720316129731,1.13503962,3050.7,3050.6,3.27804]
[1720316130788,1.2006489,3050.7,3050.2,3.27846]
[1720316131102,1.99810451,3050.6,3050.3,3.27834]
[1720316131417,1.2006489,3050.5,3050.3,3.27834]
[1720316131628,1.13503962,3050.4,3050.3,3.27834]
[1720316132297,0.06560928,3050.5,3050.3,3.27834]
[1720316132497,0.06560928,3050.5,3049.7,5.69756]
[1720316132498,1.13507824,3050.4,3050.1,3.2785]
[1720316132700,0.06560928,3050.5,3050.1,3.2785]
[1720316132701,1.20068752,3050.3,3050.1,3.27858]
[1720316132901,1.20074519,3050.2,3050.1,3.27858]
[1720316133104,1.13513591,3050.2,3050.1,3.27858]
[1720316133299,1.13513591,3050.3,3050.1,3.27858]
[1720316133501,1.20074519,3050.2,3050.0,3.27864]
[1720316133713,1.20074519,3050.2,3049.7,3.2789]
[1720316133714,6.37160928,3050.2,3049.7,3.2789]
[1720316134034,2.56571691,3050.1,3049.7,3.2789]
[1720316134204,6.37160928,3050.2,3049.7,3.2789]
[1720316134205,2.63136063,3050.0,3049.7,3.2789]
[1720316134407,1.13526728,3049.9,3049.7,3.2789]
[1720316134730,0.06560928,3049.8,3049.5,3.2792]
[1720316134896,1.13526728,3049.7,3049.5,3.2792]
[1720316135224,0.06560928,3049.6,3049.5,3.2792]
[1720316135629,1.13534282,3049.6,3049.5,3.2792]
[1720316138433,1.13534282,3049.6,3049.3,3.27943]
[1720316138611,0.35573766,3049.9,3049.1,3.27962]
[1720316138612,7.5069521,3049.5,3049.1,3.27962]
[1720316138818,1.13546796,3049.4,3049.1,3.27962]
[1720316139135,1.20107724,3049.3,3049.0,3.27976]
[1720316139442,1.20107724,3049.2,3049.0,3.27976]
[1720316139748,1.13546796,3049.1,3049.0,3.27976]
[1720316142023,0.06560928,3049.2,3049.0,3.27976]
[1720316142330,0.06560928,3049.3,3049.0,3.27976]
[1720316142633,2.56635087,3049.2,3049.0,3.27976]
[1720316142795,1.20116301,3049.1,3049.0,3.27976]
[1720316142994,1.13555373,3049.1,3049.0,3.27976]
[1720316143214,2.56635359,3049.1,3049.0,3.27976]
[1720316143424,0.06560928,3049.2,3049.0,3.27976]
[1720316144432,2.56636698,3049.1,3049.0,3.27976]
[1720316144656,0.06560928,3049.2,3049.0,3.27976]
[1720316144815,2.3565,3049.4,3049.0,3.27976]
[1720316144816,0.06560928,3049.3,3049.0,3.27976]
[1720316145022,2.56635245,3049.2,3049.0,3.27976]
[1720316145224,0.06560928,3049.1,3049.0,3.27976]
[1720316145424,0.06560928,3049.3,3049.0,3.27976]
[1720316145632,2.56632211,3049.2,3049.0,3.27976]
[1720316145814,0.06560928,3049.3,3049.1,3.27965]
[1720316146269,0.06560928,3049.3,3049.1,3.22965]
[1720316146451,1.13554094,3049.2,3049.1,3.22965]
[1720316146746,1.20115022,3049.2,3049.1,3.3178249]
[1720316147126,6.306,3049.5,3049.1,3.3178249]
[1720316147556,6.306,3049.5,3049.3,3.27943]
[1720316148064,6.306,3049.5,3049.4,0.08809865]
[1720316148224,7.4414414,3049.5,3049.4,0.08809865]
[1720316148427,7.44144324,3049.5,3049.3,3.27935]
[1720316148772,6.306,3049.5,3049.4,3.36741255]
[1720316150229,6.306,3049.5,3049.4,6.64674255]
[1720316156245,6.306,3049.5,3049.4,7.31141681]
[1720316156574,3.31,3050.1,3049.4,6.45798681]
[1720316156746,3.31,3050.1,3050.0,3.27868]
[1720316156941,5.87555316,3050.1,3050.0,3.27868]
[1720316157280,5.87555316,3050.1,3050.0,3.36643759]
[1720316157450,7.8432694,3050.1,3050.0,3.36643759]
[1720316158378,5.87561886,3050.1,3050.0,3.36643759]
[1720316158667,5.87558482,3050.1,3050.0,3.36643759]
[1720316160981,3.31,3050.1,3050.0,3.36643759]
[1720316161304,5.87557243,3050.1,3050.0,3.36643759]
[1720316161483,4.74036814,3050.1,3050.0,3.36643759]
[1720316161700,7.72977869,3050.1,3050.0,3.36643759]
[1720316162249,5.16419774,3050.1,3050.0,3.36643759]
[1720316162451,7.72981456,3050.1,3050.0,3.36643759]
[1720316163771,2.56561682,3050.1,3050.0,6.64511759]
[1720316163973,6.306,3050.3,3050.2,3.27847]
[1720316164177,8.87136448,3050.3,3050.2,6.55694]
[1720316164365,7.4410956,3050.3,3050.2,6.64460308]
[1720316164961,6.306,3050.3,3050.2,6.64460308]
[1720316166260,7.43,3050.6,3050.5,3.27815]
[1720316166469,8.565013,3050.6,3050.5,3.27815]
[1720316166683,6.306,3051.0,3050.9,3.27772]
[1720316166849,6.306,3051.0,3050.9,6.55544]
[1720316167056,8.87078451,3051.0,3050.9,6.64285862]
[1720316167347,7.4408604,3051.0,3050.9,6.64285862]
[1720316168207,6.306,3051.0,3050.9,6.64285862]
[1720316172379,6.9366,3051.0,3050.9,0.08741862]
[1720316172912,9.50156267,3051.0,3050.3,3.27835]
[1720316173066,6.9366,3051.0,3050.9,0.08705769]
[1720316173262,2.301,3050.8,3050.2,3.27846]
[1720316173467,4.93002237,3050.7,3050.3,3.27836]
[1720316173701,3.28842461,3050.6,3050.3,3.36552867]
[1720316173998,1.13511454,3050.5,3050.3,3.36552867]
[1720316174169,0.72310224,3050.6,3050.3,3.36552867]
[1720316174376,1.13511924,3050.5,3050.3,3.36552867]
[1720316174685,0.72310224,3050.6,3050.3,3.36552867]
[1720316174899,1.44391239,3050.5,3050.3,3.36552867]
[1720316175214,0.06560928,3050.4,3050.3,3.27836]
[1720316175899,0.06560928,3050.9,3050.5,3.27812]
[1720316176064,1.1349531,3050.8,3050.7,3.27786]
[1720316176460,6.9366,3051.0,3050.7,3.27786]
[1720316176699,1.8942303,3050.9,3050.7,3.36505121]
[1720316176885,1.13496102,3050.8,3050.7,0.08719121]
[1720316177085,2.56512859,3050.8,3050.6,3.27802]
[1720316177297,2.3647,3050.6,3050.1,3.27848]
[1720316177466,1.2005703,3050.5,3050.2,3.27844]
[1720316177674,1.49148805,3050.4,3050.2,3.27844]
[1720316177989,0.06560928,3050.3,3050.2,3.27844]
[1720316178564,0.35652703,3050.4,3050.3,3.27836]
[1720316178764,1.13511627,3050.5,3050.4,6.5565]
[1720316179206,0.06560928,3050.9,3050.6,3.27798]
[1720316179409,1.13498048,3050.8,3050.7,3.27786]
[1720316179613,0.06560928,3050.9,3050.7,3.27786]
[1720316179909,1.13497369,3050.8,3050.7,3.27786]
[1720316180214,1.13497456,3050.8,3050.7,3.27786]
[1720316181065,6.306,3051.0,3050.8,3.27775]
[1720316181368,1.13489156,3050.9,3050.8,3.27775]
[1720316182608,1.13490049,3050.9,3050.8,3.27775]
[1720316182924,6.306,3051.0,3050.8,3.27775]
[1720316183067,1.13490218,3050.9,3050.8,3.27775]
[1720316184912,1.68082306,3050.9,3049.9,2.3043]
[1720316185211,1.13490218,3050.8,3050.6,3.27797]
[1720316185524,1.13490218,3050.8,3050.7,3.27793]
[1720316186358,1.13496437,3050.8,3050.7,3.27793]
[1720316189377,6.306,3051.0,3050.7,3.27793]
[1720316189571,1.13490995,3050.9,3050.8,6.55564]
[1720316189789,6.306,3051.0,3050.9,3.27772]
[1720316189988,7.44084792,3051.0,3050.9,3.27772]
[1720316191618,7.44084792,3051.0,3050.9,3.36492709]
[1720316192819,7.44085506,3051.0,3050.9,3.36492709]
[1720316196033,7.44085812,3051.0,3050.9,3.36492709]
[1720316196331,7.44085809,3051.0,3050.9,3.36492709]
[1720316196490,8.87079054,3051.0,3050.9,3.36492709]
[1720316196692,7.44085809,3051.0,3050.9,3.36492709]
[1720316197592,8.87078122,3051.0,3050.9,3.36492709]
[1720316198428,7.44085809,3051.0,3050.9,6.64264709]
[1720316199399,7.44083535,3051.0,3050.9,6.64264709]
[1720316199799,7.44080486,3051.0,3050.9,6.64264709]
[1720316200829,7.44071557,3051.0,3050.9,6.64264709]
[1720316201332,6.306,3051.0,3050.9,6.64264709]
[1720316202455,6.306,3051.0,3050.9,9.92036709]
[1720316203255,7.43,3051.4,3051.3,6.55458]
[1720316203553,8.564599,3051.4,3051.3,6.64135228]
[1720316205055,9.99426252,3051.4,3051.3,6.64135228]
[1720316205661,8.564599,3051.4,3051.3,6.64135228]
[1720316205950,9.99432695,3051.4,3051.3,6.64135228]
[1720316206749,2.56432695,3051.4,3051.3,6.64135228]
[1720316207626,2.82075965,3051.4,3051.3,3.36406228]
[1720316207941,2.88636893,3051.4,3051.3,3.36406228]
[1720316208845,0.32204198,3051.4,3051.3,3.36406228]
[1720316209046,2.88650581,3051.4,3051.3,3.36406228]
[1720316209429,2.88650609,3051.4,3051.3,0.08677228]
[1720316209853,2.88650609,3051.4,3051.0,3.27758]
[1720316210026,3.08446472,3051.3,3051.0,3.27758]
[1720316210227,2.63007339,3051.2,3051.1,0.08679547]
[1720316210434,2.63017619,3051.2,3051.1,0.08679547]
[1720316210660,2.56456691,3051.2,3051.1,3.36429547]
[1720316212251,2.56462117,3051.2,3051.1,3.36429547]
[1720316215622,0.2564327,3051.4,3051.3,3.27729]
[1720316215821,2.82099555,3051.4,3051.3,3.27729]
[1720316218131,2.88660483,3051.4,3051.1,3.2775]
[1720316218469,3.08457333,3051.3,3051.2,0.0868643]
[1720316218873,3.08476947,3051.3,3050.9,3.27767]
[1720316219175,0.06560928,3051.2,3051.0,0.08690128]
[1720316219373,7.73591191,3051.1,3051.0,0.08690128]
[1720316219674,8.87076264,3051.1,3051.0,3.36451128]
[1720316220395,9.80983995,3051.1,3051.0,0.08690128]
[1720316220551,12.12333995,3051.1,3051.0,0.08690128]
[1720316220737,17.36884629,3051.1,3051.0,0.08690128]
[1720316220933,19.96998157,3051.1,3050.3,3.27827]
[1720316221136,2.92910928,3051.0,3050.3,3.27827]
[1720316221347,5.93314567,3050.9,3050.4,0.08701226]
[1720316221561,4.59858529,3050.8,3050.3,3.27827]
[1720316221766,2.6308125,3050.7,3050.3,3.27827]
[1720316221975,2.56520322,3050.6,3050.4,0.08701226]
[1720316222181,2.6308125,3050.5,3050.3,3.27827]
[1720316222401,2.56520322,3050.4,3050.3,3.27827]
[1720316224501,2.56530731,3050.4,3050.3,3.27827]
[1720316225491,2.56530731,3050.4,3050.3,6.55663]
[1720316225696,7.43,3050.9,3050.3,6.55663]
[1720316225697,7.43,3050.9,3050.7,3.27784]
[1720316225906,2.56495338,3050.8,3050.7,3.27784]
[1720316226963,2.63056266,3050.8,3050.5,3.27808]
[1720316227198,2.63056266,3050.7,3050.5,3.27808]
[1720316227506,2.56495338,3050.6,3050.5,3.27808]
[1720316227721,2.56523577,3050.6,3050.5,3.27808]
[1720316228208,2.56523176,3050.6,3050.5,3.27808]
[1720316228875,2.56523176,3050.6,3050.5,3.44208]
[1720316229197,2.56523207,3050.6,3050.5,3.44208]
[1720316230383,7.43,3050.9,3050.8,3.27782]
[1720316230583,2.56491585,3050.9,3050.8,3.36505938]
[1720316230987,2.5649149,3050.9,3050.8,3.36505938]
[1720316231374,2.5649149,3050.9,3050.8,0.08723938]
[1720316231570,2.5649149,3050.9,3050.6,3.278]
[1720316231770,2.63052418,3050.8,3050.6,3.278]
[1720316232073,0.1227265,3051.0,3050.7,0.08725787]
[1720316232269,1.77785664,3050.9,3050.7,0.08725787]
[1720316232469,2.6306731,3050.8,3050.7,3.36518787]
[1720316232675,2.56506382,3050.8,3050.7,3.36518787]
[1720316233701,4.75032176,3050.8,3050.7,3.36518787]
[1720316233907,2.56506382,3050.8,3050.7,3.36518787]
[1720316234066,2.56505046,3050.8,3050.7,3.36518787]
[1720316234262,2.56505679,3050.8,3050.7,3.36518787]
[1720316237469,0.1227265,3051.0,3050.7,3.36518787]
[1720316237470,2.18985651,3050.9,3050.8,3.27782]
[1720316237668,4.76131718,3050.9,3050.8,3.27782]
[1720316237904,3.46340437,3050.9,3050.8,0.08714052]
[1720316238112,11.27555769,3050.9,3050.8,0.08714052]
[1720316238268,3.2779,3050.8,3050.5,0.164]
[1720316238472,6.69763172,3050.6,3050.5,0.164]
[1720316238694,9.2454426,3050.6,3050.5,0.164]
[1720316238907,15.63319511,3050.6,3050.5,0.164]
[1720316239093,15.63710523,3050.6,3050.5,0.164]
[1720316239273,13.46921804,3050.6,3050.5,0.164]
[1720316240405,11.41698632,3050.6,3050.5,0.164]
[1720316240725,10.28138187,3050.6,3050.5,0.164]
[1720316240869,11.41657781,3050.6,3050.5,0.164]
[1720316242106,15.24461781,3050.6,3050.5,0.164]
[1720316242702,16.21989959,3050.6,3050.5,0.164]
[1720316243095,19.40404959,3050.6,3050.5,0.164]
[1720316243614,19.40334463,3050.6,3050.5,0.164]
[1720316243779,17.35445963,3050.6,3050.5,0.164]
[1720316244190,17.41158529,3050.6,3050.5,0.164]
[1720316244691,17.4117091,3050.6,3050.5,0.164]
[1720316246491,14.1336691,3050.6,3050.5,0.164]
[1720316247982,11.56797613,3050.6,3050.5,0.164]
[1720316248177,17.41174081,3050.6,3050.5,0.164]
[1720316248384,12.87800609,3050.6,3050.5,0.164]
[1720316248692,15.30134905,3050.6,3050.5,0.164]
[1720316249408,15.30142102,3050.6,3050.5,0.164]
[1720316249710,17.55594858,3050.6,3050.5,0.164]
[1720316249914,15.30142102,3050.6,3050.5,0.164]
[1720316250297,15.3014132,3050.6,3050.5,0.164]
[1720316250489,17.54336442,3050.6,3050.5,0.164]
[1720316250732,15.3014132,3050.6,3050.5,0.164]
[1720316251314,14.16616664,3050.6,3050.5,0.164]
[1720316251595,15.30143992,3050.6,3050.5,0.164]
[1720316254729,17.61486003,3050.6,3050.5,0.164]
[1720316254899,15.30173834,3050.6,3050.5,0.164]
[1720316255811,13.95973834,3050.6,3050.5,0.164]
[1720316258111,10.68179095,3050.6,3050.5,0.164]
[1720316258311,8.33739095,3050.6,3050.5,0.164]
[1720316258534,8.33735595,3050.6,3050.5,0.164]
[1720316258740,6.36865751,3050.6,3050.5,0.164]
[1720316259046,4.19730408,3050.6,3050.5,0.164]
[1720316259238,6.16610162,3050.6,3050.5,0.164]
[1720316260711,5.20710162,3050.6,3050.5,0.164]
[1720316261130,6.16610162,3050.6,3050.5,0.164]
[1720316261336,1.63173494,3050.6,3050.5,0.164]
[1720316261558,6.9882971,3050.6,3050.5,0.164]
[1720316261731,6.9882971,3050.6,3050.5,0.24304375]
[1720316261909,6.9882971,3050.6,3050.5,0.164]
[1720316263823,9.03850846,3050.6,3050.5,0.164]
[1720316264141,6.9882971,3050.6,3050.5,0.164]
[1720316264445,9.03850846,3050.6,3050.5,0.164]
[1720316264752,9.03972083,3050.6,3050.5,0.164]
[1720316264909,9.03971167,3050.6,3050.5,0.164]
[1720316266826,6.98820087,3050.6,3050.5,0.164]
[1720316267147,9.04001122,3050.6,3050.5,0.164]
[1720316268015,3.58892283,3050.6,3050.5,0.164]
[1720316268215,9.0401472,3050.6,3050.5,0.164]
[1720316268426,2.45369843,3050.6,3050.5,0.164]
[1720316268754,9.04015232,3050.6,3050.5,0.164]
[1720316269610,9.04028142,3050.6,3050.5,0.164]
[1720316269952,7.53128142,3050.6,3050.5,0.164]
[1720316270158,5.6163496,3050.6,3050.5,0.164]
[1720316271468,7.66831132,3050.6,3050.5,0.164]
[1720316272519,5.61616939,3050.6,3050.5,0.164]
[1720316272719,7.66859059,3050.6,3050.5,0.164]
[1720316274679,7.6688874,3050.6,3050.5,0.164]
[1720316274848,9.23252982,3050.6,3050.5,0.164]
[1720316275268,4.59164654,3050.6,3050.5,0.164]